Cogmind - Beta 15 @@@ ROGUE MODE // 2025.08.19 @ 23:36:37 Player: LymphNodeJones Result: Destroyed by G-47 Trooper with Particle Gun Performance ------------- Evolutions (2) 1000 Regions Visited (4) 800 Robots Destroyed (27) 135 Value Destroyed (494) 494 Prototype IDs (2) 40 Alien Tech Used (0) 0 Bonus (0) 0 TOTAL SCORE: 2469 Bonus ------- None Cogmind --------- Core Integrity 0/550 Matter 25/300 Energy 100/100 System Corruption 0% Temperature Cool (9) Movement Core (50) Location -8/Materials Parts ------- > --- POWER (1) -------- (None) > --- PROPULSION (2) --- (None) > --- UTILITY (4) ------ Advanced Weight Redist. System > --- WEAPON (4) ------- (None) > --- INVENTORY (5) ---- Heat Sink Improved Light Armor Plating EM Shotgun Peak State ------------ > --- POWER ------------ (None) > --- PROPULSION ------- Aerolev Unit Improved Flight Unit > --- UTILITY ---------- Advanced Weight Redist. System Seismic Detector Improved Targeting Computer Trap Extractor > --- WEAPON ----------- Heavy EM Pulse Gun Mini Grenade Launcher > --- INVENTORY -------- Heat Sink Autogun [Rating: 19] Favorites ----------- Power Light Ion Engine Engine Light Ion Engine Propulsion Aluminum Leg Leg Aluminum Leg Wheel Wheel Hover Unit Aerolev Unit Flight Unit Improved Flight Unit Utility Advanced Weight Redist. System Device Advanced Weight Redist. System Storage Small Matter Pod Processor Improved Targeting Computer Weapon EM Pulse Gun Energy Gun EM Pulse Gun Energy Cannon Beam Cannon Ballistic Gun Autogun Launcher Mini Grenade Launcher Special Melee Weapon Datajack Build | -11 -10 -10 -9 -8 ------- Run | Yrd Mat Min Mat Mat Slots Evolved 4 | . . . 2 2 Power . | . . . . . Propulsion . | . . . . . Utility 2 | . . . 2 . Weapon 2 | . . . . 2 Parts Attached 29 | 5 5 6 13 . Power 3 | 1 . 2 . . Engine 3 | 1 . 2 . . Core . | . . . . . Reactor . | . . . . . Propulsion 7 | 2 . 2 3 . Treads . | . . . . . Leg 4 | 2 . 2 . . Wheel 1 | . . . 1 . Hover 1 | . . . 1 . Flight 1 | . . . 1 . Utility 7 | . 2 1 4 . Device 5 | . 2 . 3 . Storage 1 | . . 1 . . Processor 1 | . . . 1 . Hackware . | . . . . . Protection . | . . . . . Artifact . | . . . . . Weapon 12 | 2 3 1 6 . Energy Gun 3 | 2 . . 1 . Energy Cannon 1 | . . . 1 . Ballistic Gun 4 | . . 1 3 . Ballistic Cannon . | . . . . . Launcher 3 | . 2 . 1 . Special Weapon . | . . . . . Impact Weapon . | . . . . . Slashing Weapon . | . . . . . Piercing Weapon . | . . . . . Special Melee Weapon 1 | . 1 . . . Unidentified Prototypes 2 | . . . 2 . Parts Lost 21 | . 1 6 9 5 Power 2 | . . 1 1 . Propulsion 6 | . . 2 3 1 Utility 5 | . . 1 2 2 Weapon 8 | . 1 2 3 2 Highest Loss Streak 6 | . 1 5 6 4 To Critical Strikes . | . . . . . Average Backups 1 | . 2 1 1 2 Power . | . . . . . Propulsion . | . . . . . Utility . | . . 1 1 1 Weapon . | . . . . 1 Tool/Special . | . . . . . Unused Backups 3 | . 1 . . 2 Power . | . . . . . Propulsion 1 | . 1 . . . Utility 1 | . . . . 1 Weapon 1 | . . . . 1 Tool/Special . | . . . . . Average Slot Usage (%) 65 | . 81 71 60 41 Engine 4 | . 12 5 1 . Leg 11 | . 28 22 1 . Hover 1 | . . . 4 . Flight 3 | . . . 6 5 Device 20 | . 12 14 26 23 Storage 1 | . . 4 . . Processor 1 | . . . 2 . Energy Gun 7 | . 14 11 3 . Energy Cannon 2 | . . . 4 6 Ballistic Gun 3 | . . 1 6 6 Launcher 4 | . 11 . 3 . Special Melee Weapon 2 | . . 11 . . Peak Build Rating 19 | 5 7 13 19 12 Average Rating 8 | 4 5 6 12 9 On Entrance 7 | . 5 5 13 12 Naked Turns 17 | . . . 17 . Heaviest Build 11 | 7 10 11 11 9 Greatest Support 30 | 20 20 30 30 3 Greatest Overweight (x) 2 | . . . 2 2 Average Overweight (x) . | . . . . 2 Largest Inventory Capacity 5 | 5 5 5 5 5 Average Capacity 5 | 5 5 5 5 5 Most Carried 5 | 2 5 4 3 3 Average Carried 1 | . 2 1 1 2 Final Capacity 5 | 5 5 5 5 5 Final Carried 3 | . 2 2 2 3 Class Distribution -------------------- 94% | Mutant 5% | Scavenger-Mutant Dominant Class ---------------- Mutant | -10/Materials Mutant | -10/Mines Mutant | -9/Materials Mutant | -8/Materials Resources | -11 -10 -10 -9 -8 ----------- Run | Yrd Mat Min Mat Mat Matter Collected 655 | 260 55 185 155 . Remotely . | . . . . . Salvage Created 554 | 84 89 33 348 . Parts 38 | 5 4 3 26 . Haulers Intercepted . | . . . . . Recyclers Shooed 1 | . . . 1 . Parts Field Recycled . | . . . . . Retrieved Matter . | . . . . . Parts Self-Destructed . | . . . . . Prevented . | . . . . . Kills | -11 -10 -10 -9 -8 ------- Run | Yrd Mat Min Mat Mat Combat Hostiles Destroyed 18 | 1 4 3 10 . Guns 11 | 1 2 2 6 . AOE 7 | . 2 1 4 . Classes Destroyed 8 | 2 2 . 4 . Worker 1 | . . . 1 . Builder 2 | . . . 2 . Tunneler 2 | 2 . . . . Recycler 1 | . 1 . . . Watcher 3 | . . . 3 . Swarmer 10 | . 3 3 4 . Grunt 5 | 1 1 . 3 . Sentry 3 | . . . 3 . Best Kill Streak 5 | 3 4 3 5 . Combat Bots Only 3 | 1 3 3 2 . Max Kills in Single Turn 2 | 2 2 1 1 . Gunslinging . | . . . . . Exploded 1 | . 1 1 1 . Melee . | . . . . . Uniques/NPCs Destroyed . | . . . . . Combat | -11 -10 -10 -9 -8 -------- Run | Yrd Mat Min Mat Mat Hostile Shots Fired 234 | 5 29 23 108 69 Missed 75 | 3 6 10 37 19 Hits 159 | 2 23 13 71 50 Projectile 159 | 2 23 13 71 50 AOE 3 | . . 3 . . Critical Strikes 3 | . . . 2 1 Damage Taken 2265 | 22 289 191 956 807 Core 1045 | . 108 27 352 558 Absorbed by Shields . | . . . . . Core Remaining (%) 52 | 100 . 46 12 . Volleys Fired 129 | 4 16 16 93 . Largest 2 | 2 2 1 2 . Hottest 83 | 80 70 40 83 . Shots Fired 160 | 8 21 16 115 . Gun 118 | 8 13 16 81 . Cannon 18 | . . . 18 . Launcher 24 | . 8 . 16 . Special . | . . . . . Kinetic 72 | . . . 72 . Thermal 18 | . . . 18 . Explosive 24 | . 8 . 16 . Electromagnetic 46 | 8 13 16 9 . Robot Hit Streak 15 | 2 2 3 15 . Robot Miss Streak 4 | 2 2 3 4 . Penetration Max . | . . . . . Secondary Targets . | . . . . . Shots Hit Robots 59 | 4 7 9 39 . Core Hits 47 | 6 11 5 25 . Critical Kills . | . . . . . Critical Parts Destroyed . | . . . . . Critical Strikes . | . . . . . Melee Attacks 1 | . . 1 . . Impact . | . . . . . Slashing . | . . . . . Piercing . | . . . . . Sneak Attacks 1 | . . 1 . . Combat Hostiles . | . . . . . Follow-up Attacks . | . . . . . Damage Inflicted 1885 | 161 357 167 1200 . Guns 603 | 84 50 106 363 . Cannons . | . . . . . Explosions 1278 | 77 307 61 833 . Melee . | . . . . . Ramming 4 | . . . 4 . Kinetic 289 | . . . 289 . Thermal 171 | 77 . 61 33 . Explosive 1107 | . 307 . 800 . Electromagnetic 314 | 84 50 106 74 . Impact . | . . . . . Slashing . | . . . . . Piercing . | . . . . . Highest Corruption 1 | . . . 1 . Average Corruption 1 | . . . 1 . Corruption Purged . | . . . . . Corruption Blocked . | . . . . . Effects 2 | . . . 2 . Matter Fused 1 | . . . 1 . Heat Flow Errors 1 | . . . 1 . Overload Shots . | . . . . . Overflow Damage 46 | . 2 . 44 . Projectiles . | . . . . . Explosions 46 | . 2 . 44 . Melee . | . . . . . Knockbacks . | . . . . . Impact . | . . . . . Kinetic . | . . . . . Secondary . | . . . . . Self-Inflicted Damage 113 | . 56 . 57 . Shots 4 | . 2 . 2 . Rammed 1 | . . . 1 . Targets Rammed 1 | . . . 1 . Kicked . | . . . . . Crushed . | . . . . . Highest Temperature 84 | 84 33 . 81 . Average Temperature 27 | 42 14 . 26 . Received Heat Transfer 522 | 12 69 . 225 216 Siege Activations . | . . . . . Martial Activations . | . . . . . Shielding Activations . | . . . . . Robots Disrupted . | . . . . . Combat Hostiles . | . . . . . Robots Corrupted . | . . . . . Combat Hostiles . | . . . . . Parts Fried . | . . . . . Impact Corruptions . | . . . . . Robots Melted . | . . . . . Combat Hostiles . | . . . . . Parts Melted . | . . . . . Heat Transferred 300 | 150 . 100 50 . Parts Sabotaged . | . . . . . Parts Stolen . | . . . . . Parts Stripped . | . . . . . Power Chain Reactions 3 | 1 . 1 1 . Alert | -11 -10 -10 -9 -8 ------- Run | Yrd Mat Min Mat Mat Maximum Alert Level . | . . . . . Low Security (%) 100 | 100 100 100 100 100 Level 1 . | . . . . . Level 2 . | . . . . . Level 3 . | . . . . . Level 4 . | . . . . . Level 5 . | . . . . . High Security . | . . . . . Max Security . | . . . . . Peak Influence 108 | 30 78 61 108 15 Initial 27 | . . 27 . . Average 17 | 4 15 8 26 . Influence Increases 671 | 30 160 86 380 15 Destroy 0b10 Robot/C 360 | 20 80 60 200 . Destroy 0b10 Robot/NC 45 | 10 5 . 30 . Destroy Leader 86 | . 20 10 56 . Disable Machine 15 | . 15 . . . Destroy Structure 135 | . 40 1 94 . Lose Combat Pursuer 30 | . . 15 . 15 Influence Decreases 671 | 30 90 156 380 15 Entered New Map 43 | . . 43 . . Time Decay 483 | 30 80 83 290 . Lost Part 125 | . 10 10 90 15 Lost Ally 20 | . . 20 . . Squads Dispatched 4 | . 1 . 3 . Investigation 1 | . . . 1 . Extermination . | . . . . . Reinforcement 3 | . 1 . 2 . Assault . | . . . . . Garrison . | . . . . . Intercept . | . . . . . Searches Triggered . | . . . . . Construction Impeded 1 | . . . 1 . Haulers Reinforced . | . . . . . Active Scanning Responses . | . . . . . Cargo Convoy Interrupts . | . . . . . Stealth | -11 -10 -10 -9 -8 --------- Run | Yrd Mat Min Mat Mat Distress Signals 1 | . . . 1 . Communications Jammed . | . . . . . Distress Signals . | . . . . . Times Spotted 42 | 1 11 5 19 6 Peak Tracking Total 6 | 1 5 3 6 4 Tactical Retreats 2 | . . 1 . 1 Traps | -11 -10 -10 -9 -8 ------- Run | Yrd Mat Min Mat Mat Traps Triggered 3 | . 1 . 2 . Indirectly . | . . . . . Trap Hack Attempts . | . . . . . Triggered . | . . . . . Disarmed . | . . . . . Reprogrammed . | . . . . . Reused . | . . . . . Traps Extracted . | . . . . . Installed . | . . . . . Triggered . | . . . . . Machines | -11 -10 -10 -9 -8 ---------- Run | Yrd Mat Min Mat Mat Machines Disabled 2 | . 2 . . . Max in Single Turn 1 | . 1 . . . Machines Repaired . | . . . . . Machines Dismantled . | . . . . . Machines Sabotaged . | . . . . . Overloaded Fab Kills . | . . . . . Hacking | -11 -10 -10 -9 -8 --------- Run | Yrd Mat Min Mat Mat Machines Accessed 1 | . . . 1 . Terminals 1 | . . . 1 . Fabricators . | . . . . . Repair Stations . | . . . . . Recycling Units . | . . . . . Scanalyzers . | . . . . . Garrison Access . | . . . . . Total Hacks 1 | . . . 1 . Successful . | . . . . . Failed 1 | . . . 1 . Catastrophic . | . . . . . Database Lockouts . | . . . . . Manual . | . . . . . Terminals 1 | . . . 1 . Fabricators . | . . . . . Repair Stations . | . . . . . Recycling Units . | . . . . . Scanalyzers . | . . . . . Garrison Access . | . . . . . Terminal Hacks . | . . . . . Fabricator Hacks . | . . . . . Repair Station Hacks . | . . . . . Recycling Unit Hacks . | . . . . . Scanalyzer . | . . . . . Garrison Access Hacks . | . . . . . Unauthorized Hacks . | . . . . . Terminals . | . . . . . Fabricators . | . . . . . Repair Stations . | . . . . . Recycling Units . | . . . . . Scanalyzers . | . . . . . Garrison Access . | . . . . . Data Cores Recovered . | . . . . . Used . | . . . . . Hacking Detections 1 | . . . 1 . Full Trace Events . | . . . . . Feedback Events . | . . . . . Feedback Blocked . | . . . . . Robot Schematics Acquired . | . . . . . Robots Built . | . . . . . Authchips . | . . . . . Time . | . . . . . Total Robot Build Rating . | . . . . . Part Schematics Acquired . | . . . . . Parts Built . | . . . . . Authchips . | . . . . . Time . | . . . . . Total Part Build Rating . | . . . . . Parts Repaired . | . . . . . Time . | . . . . . Parts Recycled . | . . . . . Recycled Matter . | . . . . . Retrieved Matter . | . . . . . Retrieved Components . | . . . . . Parts Scanalyzed . | . . . . . Part Schematics Acquired . | . . . . . Parts Damaged . | . . . . . Bothacking | -11 -10 -10 -9 -8 ------------ Run | Yrd Mat Min Mat Mat Used RIF Installer . | . . . . . Robots Hacked . | . . . . . Non-combat . | . . . . . Combat . | . . . . . Robot Hacks Applied . | . . . . . Relay Couplers Released . | . . . . . Fabnet Peak Effective % . | . . . . . Robots Rewired . | . . . . . Allies Hacked . | . . . . . Hacks Repelled . | . . . . . Allies | -11 -10 -10 -9 -8 -------- Run | Yrd Mat Min Mat Mat Total Allies 2 | . . 2 . . Largest Group 2 | . . 2 . . Highest-Rated Group 42 | . . 42 . . Highest-Rated Ally 31 | . . 31 . . Total Orders . | . . . . . Ally Attacks 6 | . . 6 . . Total Damage 81 | . . 81 . . Kills 1 | . . 1 . . Allies Corrupted . | . . . . . Allies Melted . | . . . . . Intel | -11 -10 -10 -9 -8 ------- Run | Yrd Mat Min Mat Mat Active Infowar (turns) 814 | . 172 520 122 . Terrain 772 | . 172 520 80 . Seismic 42 | . . . 42 . Robot Analysis Total . | . . . . . Derelict Logs Recovered 1 | . . 1 . . Drone Launches . | . . . . . Drone Recoveries . | . . . . . Exploration | -11 -10 -10 -9 -8 ------------- Run | Yrd Mat Min Mat Mat Turns Passed 2334 | 149 432 520 1043 190 Spaces Moved 1156 | 69 304 271 439 73 Core 488 | 21 . 49 345 73 Treads . | . . . . . Legs 610 | 48 304 222 36 . Wheels . | . . . . . Hover 58 | . . . 58 . Flight . | . . . . . Fastest Speed 50 | 50 120 50 50 150 Average Speed 111 | 98 120 107 103 150 Slowest Speed 150 | 120 120 120 150 150 Overloaded Moves . | . . . . . Propulsion Burnouts . | . . . . . Robots Hopped . | . . . . . Potential Cave-ins 13 | . . . 13 . Cave-ins Triggered 1 | . . . 1 . Exploration Rate (%) 28 | 6 42 44 42 10 Regions Visited 4 Branch Regions 1 Pre-discovered Areas 1 | . . 1 . . Known Exits Taken . | . . . . . Unknown Exits Taken 4 | 1 1 1 1 . Scrap Searched 1 | . . 1 . . Spaces Dug . | . . . . . Terrain Destroyed 183 | . 44 1 138 . Melee . | . . . . . Projectile . | . . . . . AOE 183 | . 44 1 138 . Terrain Rammed . | . . . . . Walls Destroyed . | . . . . . Machines Disabled . | . . . . . Actions | -11 -10 -10 -9 -8 --------- Run | Yrd Mat Min Mat Mat Total 2060 | 142 352 483 930 153 Wait 706 | 58 15 184 370 79 Move 1151 | 68 303 270 437 73 Hop . | . . . . . Pick Up 33 | 5 8 6 13 1 Fast Attach . | . . . . . Attach 31 | 6 6 6 13 . Detach 2 | 1 1 . . . Swap . | . . . . . Drop 5 | . 3 . 2 . Fire 129 | 4 16 16 93 . Melee 1 | . . 1 . . Ram 1 | . . . 1 . Kick . | . . . . . Crush . | . . . . . Escape Stasis 1 | . . . 1 . Rewire . | . . . . . Trap . | . . . . . Miscellaneous . | . . . . . Route ------- -11/Scrapyard -10/Materials (discovered 2 exits: *Mat / [*Min]) -10/Mines -9/Materials -8/Materials History --------- Turn | Location | Event 2 | -11/Scrapyard | Met Revision 17 62 | -11/Scrapyard | Discovered new exit (range 8) 150 | -11/Scrapyard | Entered Materials 303 | -10/Materials | Build established: Mutant 310 | -10/Materials | Discovered new exit (range 8) 542 | -10/Materials | Discovered new exit (range 7) 582 | -10/Materials | Entered Mines 622 | -10/Mines | Discovered new exit (range 7) 631 | -10/Mines | Assembled infested the area 990 | -10/Mines | Learned location of Recycling (-8) 1005 | -10/Mines | Core integrity fell below 50% 1035 | -10/Mines | Lost 5 parts (1p1n1u2w) 1102 | -10/Mines | Entered Materials 1102 | -9/Materials | Evolved 2 slots: Utility x2 1200 | -9/Materials | Core integrity fell below 50% 1230 | -9/Materials | Lost 6 parts (1p2n1u2w) 1566 | -9/Materials | Core integrity fell below 20% 1590 | -9/Materials | Crushed by falling debris 1767 | -9/Materials | Discovered new exit (range 16) 2145 | -9/Materials | Entered another Materials area 2145 | -8/Materials | Evolved 2 slots: Weapon x2 2226 | -8/Materials | Met 7R-MNS 2308 | -8/Materials | Lost 4 parts (1n1u2w) 2309 | -8/Materials | Core integrity fell below 50% 2327 | -8/Materials | Core integrity fell below 20% 2335 | -8/Materials | Destroyed by G-47 Trooper with Particle Gun Last Messages --------------- 02290_ K-01 Serf collects debris. 02295_ Penetrated by Slug. 02297_ K-01 Serf collects debris. 02304_ Penetrated by Slug. 02306_ K-01 Serf collects debris. 02308_ Penetrated by Slug. 02309_ K-01 Serf collects debris. 02313_ Penetrated by Slug. 02314_ K-01 Serf collects debris. 02326_ Slug penetrates G-47 Trooper. 02326_ K-01 Serf collects debris. 02326_ R-06 Scavenger collects Hvy. Assault Rifle. 02329_ K-01 Serf collects debris. 02330_ Trap Extractor destroyed. 02330_ R-06 Scavenger collects Lgt. Armor Plating. 02332_ K-01 Serf collects debris. 02333_ Penetrated by Slug. 02334_ R-06 Scavenger collects Heat Sink. Map ----- +----------------------------------------------------+ | ??????????????????# #???????# # "" #???????? | | ??????????????????# #???????# # #???????? | | ?????????????????## ##??????# ######+#???????? | | ?????????????????#* ###+### #?????????????? | | ?????????????????# ?????????????? | | ?????????????# ### % " ??????????????? | | ?????????????#" ! ?????????????? | | ?????????????#%### ####### #?????????????? | | ???????????????#####+#####???###+###?????????????? | | ???????????????# #???????????????????????? | | ???????????????#"" #???????????????????????? | | ???????????????#"T #???????????????????????? | | ???????????????#"" """" #???????????????????????? | | ???????????????# """" #???????????????????????? | | ???????????????# """" #???????????????????????? | | ???????????????# #???????????????????????? | | ???????????????# #???????????????????????? | | ???????????????###/############??????????????????? | | ???????????????### ### #??????????????????? | | ?????????###+### # #??????????????????? | | ????? # #??????????????????? | | ???? + g #??????????????????? | | ????? # #??????????????????? | | ?????+########## #grhk #??????????????????? | | ???????????????## ## g #??????????????????? | | ????????????????# ## k@ #??????????????????? | | ????????????????# ## #??????????????????? | | ????????????????# ###########??????????????????? | | ????????????????# #????????????????????????????? | | ????????????????# #????????????????????????????? | | ????????????????# #????????????????????????????? | | ????????????????# ?????????????????????????????? | | ????????????????# ?????????????????????????????? | | ????????????????# ?????????????????????????????? | | ????????????????# ?????????????????????????????? | | ?????????????????? ??????????????????????????????? | | ?????????????????????????????????????????????????? | | ?????????????????????????????????????????????????? | | ?????????????????????????????????????????????????? | | ?????????????????????????????????????????????????? | | ?????????????????????????????????????????????????? | | ?????????????????????????????????????????????????? | | ?????????????????????????????????????????????????? | | ?????????????????????????????????????????????????? | | ?????????????????????????????????????????????????? | | ?????????????????????????????????????????????????? | | ?????????????????????????????????????????????????? | | ?????????????????????????????????????????????????? | | ?????????????????????????????????????????????????? | | ?????????????????????????????????????????????????? | +----------------------------------------------------+ Best States ------------- Heat Dissipation 35 Energy Generation 18 Energy Capacity 150 Matter Stores 350 Matter Capacity 350 Sight Range 16 Terrain Scan Range 14 Terrain Scan Density 10 Additional Mass Support 9 Evasion (%) 55 Targeting Accuracy 6 Trap Extractor Capacity 4 Item Schematics ----------------- None Robot Schematics ------------------ None Fabricated ------------ Nothing Repaired ---------- Nothing Alien Tech Used ----------------- None Achievements -------------- None Challenges ------------ None Game ------ Seed NeutronTerrabombHarness Manual? 0 Play Time 00:40:19 Cumulative 0.6 hours Start 2025.08.19 @ 22:31:17 End 2025.08.19 @ 23:36:37 Sessions 1 Manual Loads 0 Difficulty Rogue Special Mode None Game No. 1 Rogue 1 Adventurer 0 Explorer 0 Win Type - Total 0 Types 0/0/0/0/0/0/0/0/0/0 Lore% 0 Gallery% 2 Achievement% 10 Wizard Run 0 Options --------- Layout 1 ASCII 0 Keyboard 0 Movement Mouse Keybinds 0 Fullscreen 1 Font 24/Smallcaps Map View 50x35 Zoom Use 74% Tactical HUD 1 Map Filters NONE Filters NONE Steam 1 RUN: ceee3bb8-d969-4698-901d-216b391e2edc